Cogmind - Beta 13 @@@ ROGUE MODE // 2024.05.19 @ 15:07:01 Player: mrwizrd Result: Destroyed by S-27 Virus with Autogun Performance ------------- Evolutions (3) 1500 Regions Visited (5) 1000 Robots Destroyed (29) 145 Value Destroyed (1039) 1039 Prototype IDs (4) 80 Alien Tech Used (0) 0 Bonus (0) 0 TOTAL SCORE: 3764 Bonus ------- None Cogmind --------- Core Integrity 0/700 Matter 265/300 Energy 156/160 System Corruption 22% Temperature Cool (1) Movement Flying (115) Ox1 Location -7/Lower Caves Parts ------- > --- POWER (1) -------- Light Nuclear Core > --- PROPULSION (3) --- VTOL Module > --- UTILITY (6) ------ Propulsion Shielding > --- WEAPON (3) ------- Spear > --- INVENTORY (5) ---- Cesium-ion Thruster Matter Filter Peak State ------------ > --- POWER ------------ Light Nuclear Core > --- PROPULSION ------- Carbon-fiber Leg Titanium Leg Titanium Leg > --- UTILITY ---------- Small Storage Unit Advanced Visual Processing Unit Core Analyzer Recoil Stabilizer Matter Filter Insulated Plating > --- WEAPON ----------- Gatling Laser High-powered Shotgun Assault Cannon > --- INVENTORY -------- Ion Engine Titanium Leg Terrain Scanner Targeting Computer Matter Filter High-powered Shotgun Mining Laser [Rating: 41] Favorites ----------- Power Light Nuclear Core Engine Light Ion Engine Power Core Light Nuclear Core Propulsion Titanium Leg Leg Titanium Leg Hover Unit Gravmag System Flight Unit Cesium-ion Thruster Utility Small Storage Unit Device Matter Filter Storage Small Storage Unit Processor Advanced Visual Processing Unit Protection Hardened Light Armor Plating Weapon EM Pulse Gun Energy Gun EM Pulse Gun Energy Cannon Beam Cannon Ballistic Gun Light Assault Rifle Ballistic Cannon Assault Cannon Special Weapon Mining Laser Piercing Weapon Spear Special Melee Weapon Improved Datajack Build | -11 -10 -9 -8 -7 -7 ------- Run | Yrd Mat Mat Mat Fac Low Slots Evolved 6 | . . 2 2 2 . Power . | . . . . . . Propulsion 1 | . . . 1 . . Utility 4 | . . 2 . 2 . Weapon 1 | . . . 1 . . Parts Attached 80 | 7 4 9 31 21 8 Power 7 | 1 . . 3 1 2 Engine 4 | 1 . . 2 1 . Core 3 | . . . 1 . 2 Reactor . | . . . . . . Propulsion 23 | 2 3 3 7 5 3 Treads . | . . . . . . Leg 17 | 2 3 3 7 2 . Wheel . | . . . . . . Hover 4 | . . . . 3 1 Flight 2 | . . . . . 2 Utility 24 | 1 . 3 9 9 2 Device 7 | . . 1 . 6 . Storage 2 | 1 . . . 1 . Processor 3 | . . . 2 1 . Hackware . | . . . . . . Protection 12 | . . 2 7 1 2 Artifact . | . . . . . . Weapon 26 | 3 1 3 12 6 1 Energy Gun 11 | 1 . 3 5 2 . Energy Cannon 2 | . . . 2 . . Ballistic Gun 9 | 2 1 . 4 1 1 Ballistic Cannon 1 | . . . 1 . . Launcher . | . . . . . . Special Weapon 1 | . . . . 1 . Impact Weapon . | . . . . . . Slashing Weapon . | . . . . . . Piercing Weapon 1 | . . . . 1 . Special Melee Weapon 1 | . . . . 1 . Unidentified Prototypes 2 | . . . 1 1 . Parts Lost 17 | . . . 2 9 6 Power 2 | . . . . 1 1 Propulsion 4 | . . . . 2 2 Utility 6 | . . . 1 4 1 Weapon 5 | . . . 1 2 2 Highest Loss Streak 6 | . . . 1 5 6 To Critical Strikes . | . . . . . . Average Slot Usage (%) 77 | . 83 81 87 63 37 Engine 5 | . 14 11 5 . . Core 2 | . . . 3 4 . Leg 17 | . 27 22 19 13 . Hover 1 | . . . . . 12 Device 4 | . . 6 . 11 6 Storage 8 | . 14 11 9 5 . Processor 5 | . . . 9 6 . Protection 9 | . . 9 13 3 1 Energy Gun 10 | . . 16 12 2 6 Energy Cannon 4 | . . . 8 . . Ballistic Gun 4 | . 27 4 2 4 . Ballistic Cannon 1 | . . . 2 4 . Naked Turns 82 | . . . . 82 . Heaviest Build 37 | 11 10 20 31 37 10 Greatest Support 51 | 20 20 20 51 49 18 Greatest Overweight (x) 3 | 3 2 . 2 1 3 Average Overweight (x) . | . . . . . . Largest Inventory Capacity 8 | 8 8 8 8 8 5 Average Capacity 7 | 7 8 8 8 6 5 Most Carried 8 | 4 7 8 8 8 4 Average Carried 6 | 2 4 7 7 4 3 Final Capacity 8 | 8 8 8 8 5 5 Final Carried 8 | 4 7 8 8 2 2 Class Distribution -------------------- 46% | Mutant 33% | Tank 17% | Gunner Dominant Class ---------------- Mutant | -10/Materials Mutant | -9/Materials Tank | -8/Materials Gunner | -7/Factory Mutant | -7/Lower Caves Resources | -11 -10 -9 -8 -7 -7 ----------- Run | Yrd Mat Mat Mat Fac Low Matter Collected 1128 | 223 36 119 360 297 93 Remotely . | . . . . . . Salvage Created 1158 | . 36 343 657 49 73 Parts 60 | . 2 20 26 6 6 Haulers Intercepted . | . . . . . . Recyclers Shooed . | . . . . . . Parts Field Recycled . | . . . . . . Retrieved Matter . | . . . . . . Parts Self-Destructed 1 | . . . . . 1 Prevented . | . . . . . . Kills | -11 -10 -9 -8 -7 -7 ------- Run | Yrd Mat Mat Mat Fac Low Combat Hostiles Destroyed 27 | . 1 10 12 1 3 Melee 4 | . . . . 1 3 Guns 16 | . 1 9 6 . . Cannons 5 | . . . 5 . . AOE 2 | . . 1 1 . . Classes Destroyed 7 | . 1 2 1 2 1 Builder 1 | . . . . 1 . Watcher 1 | . . . 1 . . Swarmer 6 | . . 4 . . 2 Grunt 12 | . 1 4 7 . . Sentry 7 | . . 2 5 . . Programmer 1 | . . . . 1 . Thief 1 | . . . . . 1 Best Kill Streak 8 | . 1 8 3 1 1 Combat Bots Only 8 | . 1 8 3 1 1 Max Kills in Single Turn 2 | . 1 1 2 1 1 Gunslinging . | . . . . . . Exploded 1 | . . 1 1 . . Melee 1 | . . . . 1 1 Uniques/NPCs Destroyed . | . . . . . . Combat | -11 -10 -9 -8 -7 -7 -------- Run | Yrd Mat Mat Mat Fac Low Hostile Shots Fired 229 | . 6 44 69 66 44 Missed 77 | . 2 20 15 24 16 Damage Taken 3264 | . 43 272 998 1541 410 Core 1008 | . . 66 227 571 144 Absorbed by Shields . | . . . . . . Redirected to Shielding 43 | . . . 39 . 4 Regen/Repaired (Parts) 151 | . . 151 . . . Core Remaining (%) 85 | 100 100 83 58 . . Volleys Fired 107 | . 4 25 40 31 7 Largest 3 | . 2 2 3 3 1 Hottest 175 | . 40 90 175 169 50 Shots Fired 204 | . 8 49 89 50 8 Gun 127 | . 8 49 49 13 8 Cannon 67 | . . . 40 27 . Launcher . | . . . . . . Special 10 | . . . . 10 . Kinetic 53 | . 8 . 6 38 1 Thermal 94 | . . 24 58 12 . Explosive . | . . . . . . Electromagnetic 57 | . . 25 25 . 7 Robot Hit Streak 11 | . 4 9 11 2 1 Robot Miss Streak 7 | . 2 7 4 4 3 Penetration Max . | . . . . . . Secondary Targets 1 | . . 1 . . . Max Gunslinging Chain 1 | . . 1 . . . Shots Hit Robots 96 | . 5 26 54 3 8 Core Hits 49 | . 2 14 27 2 4 Critical Kills . | . . . . . . Critical Parts Destroyed . | . . . . . . Critical Strikes 6 | . . 1 2 1 2 Burn 3 | . . 1 2 . . Impale 3 | . . . . 1 2 Melee Attacks 12 | . . . . 4 8 Impact . | . . . . . . Slashing . | . . . . . . Piercing 12 | . . . . 4 8 Sneak Attacks . | . . . . . . Combat Hostiles . | . . . . . . Follow-up Attacks . | . . . . . . Damage Inflicted 1962 | . 45 473 1143 100 201 Guns 884 | . 45 326 455 25 33 Cannons 596 | . . . 549 47 . Explosions 286 | . . 147 139 . . Melee 196 | . . . . 28 168 Ramming . | . . . . . . Kinetic 165 | . 45 . 55 47 18 Thermal 1257 | . . 306 926 25 . Explosive . | . . . . . . Electromagnetic 344 | . . 167 162 . 15 Impact . | . . . . . . Slashing . | . . . . . . Piercing 196 | . . . . 28 168 Highest Corruption 22 | . 1 1 5 22 22 Average Corruption 12 | . 1 1 5 16 22 Corruption Purged . | . . . . . . Corruption Blocked . | . . . . . . Effects 36 | . . . 2 19 15 Message Errors 7 | . . . . 5 2 Matter Fused 9 | . . . 2 4 3 Heat Flow Errors 2 | . . . . 2 . Energy Discharges 5 | . . . . 2 3 Parts Rejected 1 | . . . . 1 . Data Loss (minor) 5 | . . . . 1 4 Data Loss (major) 1 | . . . . . 1 Misfires 1 | . . . . . 1 Alerts 1 | . . . . . 1 Misdirections 3 | . . . . 3 . Weapon Failures 1 | . . . . 1 . Overload Shots . | . . . . . . Overflow Damage . | . . . . . . Projectiles . | . . . . . . Explosions . | . . . . . . Melee . | . . . . . . Knockbacks 1 | . . . 1 . . Impact . | . . . . . . Kinetic 1 | . . . 1 . . Secondary . | . . . . . . Self-Inflicted Damage . | . . . . . . Shots . | . . . . . . Rammed . | . . . . . . Targets Rammed . | . . . . . . Kicked . | . . . . . . Crushed . | . . . . . . Highest Temperature 589 | . 6 271 589 381 . Average Temperature 179 | . 6 95 212 159 . Received Heat Transfer 531 | . 24 75 432 . . Effects 24 | . . . 17 7 . Shutdowns 6 | . . . 5 1 . Energy Bleed 3 | . . . 3 . . Interference 11 | . . . 5 6 . Short Circuit 1 | . . . 1 . . Damage (minor) 1 | . . . 1 . . Damage (core) 2 | . . . 2 . . Siege Activations . | . . . . . . Robots Corrupted . | . . . . . . Combat Hostiles . | . . . . . . Parts Fried 1 | . . 1 . . . Impact Corruptions . | . . . . . . Robots Melted . | . . . . . . Combat Hostiles . | . . . . . . Parts Melted 5 | . . 1 4 . . Heat Transferred 2585 | . . 705 1830 50 . Parts Sabotaged . | . . . . . . Parts Stolen . | . . . . . . Parts Stripped . | . . . . . . Power Chain Reactions 2 | . . 1 1 . . Alert | -11 -10 -9 -8 -7 -7 ------- Run | Yrd Mat Mat Mat Fac Low Peak Influence 285 | . 60 285 232 55 . Initial 54 | . . . 7 54 . Average 67 | . 26 101 79 29 . Maximum Alert Level 1 | . . 1 1 . . Low Security (%) 92 | 100 100 66 98 100 . Level 1 7 | . . 33 1 . . Level 2 . | . . . . . . Level 3 . | . . . . . . Level 4 . | . . . . . . Level 5 . | . . . . . . High Security . | . . . . . . Max Security . | . . . . . . Squads Dispatched 12 | . 2 1 4 5 . Investigation 4 | . 1 1 1 1 . Extermination . | . . . . . . Reinforcement 2 | . 1 . . 1 . Assault . | . . . . . . Garrison 6 | . . . 3 3 . Intercept . | . . . . . . Searches Triggered . | . . . . . . Construction Impeded . | . . . . . . Haulers Reinforced . | . . . . . . Active Scanning Responses . | . . . . . . Cargo Convoy Interrupts . | . . . . . . Stealth | -11 -10 -9 -8 -7 -7 --------- Run | Yrd Mat Mat Mat Fac Low Distress Signals 3 | . . 2 1 . . Communications Jammed . | . . . . . . Distress Signals . | . . . . . . Times Spotted 44 | . 2 12 21 5 4 Peak Tracking Total 7 | . 1 7 4 3 3 Tactical Retreats 4 | . . 1 1 2 . Traps | -11 -10 -9 -8 -7 -7 ------- Run | Yrd Mat Mat Mat Fac Low Traps Triggered 10 | . 2 . 7 1 . Indirectly . | . . . . . . Trap Hack Attempts . | . . . . . . Triggered . | . . . . . . Disarmed . | . . . . . . Reprogrammed . | . . . . . . Reused . | . . . . . . Traps Extracted . | . . . . . . Installed . | . . . . . . Triggered . | . . . . . . Machines | -11 -10 -9 -8 -7 -7 ---------- Run | Yrd Mat Mat Mat Fac Low Machines Disabled 1 | . . . 1 . . Max in Single Turn 1 | . . . 1 . . Machines Repaired . | . . . . . . Machines Dismantled . | . . . . . . Machines Sabotaged . | . . . . . . Overloaded Fab Kills . | . . . . . . Hacking | -11 -10 -9 -8 -7 -7 --------- Run | Yrd Mat Mat Mat Fac Low Machines Accessed 13 | . 2 4 6 1 . Terminals 11 | . 2 2 6 1 . Fabricators . | . . . . . . Repair Stations 2 | . . 2 . . . Recycling Units . | . . . . . . Scanalyzers . | . . . . . . Garrison Access . | . . . . . . Total Hacks 34 | . 5 14 13 2 . Successful 20 | . 1 10 8 1 . Failed 14 | . 4 4 5 1 . Catastrophic 1 | . . 1 . . . Database Lockouts . | . . . . . . Manual 8 | . 3 2 3 . . Terminals 23 | . 5 3 13 2 . Fabricators . | . . . . . . Repair Stations 11 | . . 11 . . . Recycling Units . | . . . . . . Scanalyzers . | . . . . . . Garrison Access . | . . . . . . Terminal Hacks 11 | . 1 1 8 1 . Record 2 | . . . 2 . . Robot Analysis 1 | . . . 1 . . Prototype ID Bank 1 | . . . 1 . . Open DSF 1 | . . . . 1 . Emergency Access Points 2 | . . . 2 . . Unreport Threat 2 | . 1 1 . . . Zone Layout 2 | . . . 2 . . Fabricator Hacks . | . . . . . . Repair Station Hacks 9 | . . 9 . . . Scan Component 5 | . . 5 . . . Repair 4 | . . 4 . . . Recycling Unit Hacks . | . . . . . . Scanalyzer . | . . . . . . Garrison Access Hacks . | . . . . . . Unauthorized Hacks . | . . . . . . Terminals . | . . . . . . Fabricators . | . . . . . . Repair Stations . | . . . . . . Recycling Units . | . . . . . . Scanalyzers . | . . . . . . Garrison Access . | . . . . . . Data Cores Recovered . | . . . . . . Used . | . . . . . . Hacking Detections 10 | . 2 3 4 1 . Full Trace Events 4 | . 2 2 . . . Feedback Events 1 | . . 1 . . . Corruption 1 | . . 1 . . . Feedback Blocked . | . . . . . . Robot Schematics Acquired . | . . . . . . Robots Built . | . . . . . . Authchips . | . . . . . . Time . | . . . . . . Total Robot Build Rating . | . . . . . . Part Schematics Acquired . | . . . . . . Parts Built . | . . . . . . Authchips . | . . . . . . Time . | . . . . . . Total Part Build Rating . | . . . . . . Parts Repaired 4 | . . 4 . . . Time 116 | . . 116 . . . Parts Recycled . | . . . . . . Recycled Matter . | . . . . . . Retrieved Matter . | . . . . . . Retrieved Components . | . . . . . . Parts Scanalyzed . | . . . . . . Part Schematics Acquired . | . . . . . . Parts Damaged . | . . . . . . Bothacking | -11 -10 -9 -8 -7 -7 ------------ Run | Yrd Mat Mat Mat Fac Low Used RIF Installer . | . . . . . . Robots Hacked . | . . . . . . Non-combat . | . . . . . . Combat . | . . . . . . Robot Hacks Applied . | . . . . . . Relay Couplers Released . | . . . . . . Fabnet Peak Effective % . | . . . . . . Robots Rewired . | . . . . . . Allies Hacked . | . . . . . . Hacks Repelled . | . . . . . . Allies | -11 -10 -9 -8 -7 -7 -------- Run | Yrd Mat Mat Mat Fac Low Total Allies 1 | . . . . . 1 Largest Group 1 | . . . . . 1 Highest-Rated Group 167 | . . . . . 167 Highest-Rated Ally 167 | . . . . . 167 Total Orders . | . . . . . . Ally Attacks . | . . . . . . Total Damage . | . . . . . . Kills . | . . . . . . Allies Corrupted . | . . . . . . Allies Melted . | . . . . . . Intel | -11 -10 -9 -8 -7 -7 ------- Run | Yrd Mat Mat Mat Fac Low Robot Analysis Total 1 | . . . 1 . . Derelict Logs Recovered . | . . . . . . Drone Launches . | . . . . . . Drone Recoveries . | . . . . . . Exploration | -11 -10 -9 -8 -7 -7 ------------- Run | Yrd Mat Mat Mat Fac Low Turns Passed 3201 | 118 160 572 1484 594 273 Spaces Moved 2091 | 83 118 326 757 531 276 Core 225 | 15 1 . 7 197 5 Treads . | . . . . . . Legs 1480 | 68 117 326 750 219 . Wheels . | . . . . . . Hover 367 | . . . . 115 252 Flight 19 | . . . . . 19 Fastest Speed 50 | 50 120 120 100 50 50 Average Speed 117 | 126 120 120 158 84 61 Slowest Speed 260 | 200 150 120 260 126 200 Overloaded Moves . | . . . . . . Propulsion Burnouts . | . . . . . . Robots Hopped . | . . . . . . Cave-ins Triggered 4 | . . . . 4 . Exploration Rate (%) 23 | 5 26 26 43 16 23 Regions Visited 5 Branch Regions 1 Pre-discovered Areas . | . . . . . . Known Exits Taken . | . . . . . . Unknown Exits Taken 5 | 1 1 1 1 1 . Scrap Searched . | . . . . . . Spaces Dug 15 | . . . . 15 . Terrain Destroyed 33 | . . 6 11 16 . Melee . | . . . . . . Projectile 25 | . . . 9 16 . AOE 8 | . . 6 2 . . Terrain Rammed . | . . . . . . Walls Destroyed . | . . . . . . Machines Disabled . | . . . . . . Actions | -11 -10 -9 -8 -7 -7 --------- Run | Yrd Mat Mat Mat Fac Low Total 2594 | 93 127 454 964 599 357 Wait 253 | . . 90 102 6 55 Move 2085 | 82 117 325 756 529 276 Hop . | . . . . . . Pick Up 25 | 4 2 3 15 1 . Fast Attach 50 | 6 3 4 20 12 5 Attach 17 | . . . 6 8 3 Detach 6 | . . . . 3 3 Swap 13 | 1 1 5 5 1 . Drop 25 | . . 2 20 3 . Fire 107 | . 4 25 40 31 7 Melee 12 | . . . . 4 8 Ram . | . . . . . . Kick . | . . . . . . Crush . | . . . . . . Escape Stasis 1 | . . . . 1 . Rewire . | . . . . . . Trap . | . . . . . . Miscellaneous . | . . . . . . Route ------- -11/Scrapyard -10/Materials -9/Materials -8/Materials -7/Factory -7/Lower Caves History --------- Turn | Location | Event 41 | -11/Scrapyard | Discovered new exit (range 14) 119 | -11/Scrapyard | Entered Materials 233 | -10/Materials | Discovered new exit (range 15) 279 | -10/Materials | Entered another Materials area 279 | -9/Materials | Evolved 2 slots: Utility x2 301 | -9/Materials | Build established: Mutant 498 | -9/Materials | Destroyed 8 combat bots 653 | -9/Materials | Discovered new exit (range 16) 743 | -9/Materials | Repaired Aluminum Leg 745 | -9/Materials | Repaired Med. Armor Plating 771 | -9/Materials | Repaired EM Pulse Gun 808 | -9/Materials | Repaired Particle Gun 851 | -9/Materials | Entered another Materials area 851 | -8/Materials | Evolved 2 slots: Propulsion x1, Weapon x1 1297 | -8/Materials | Build established: Tank 1486 | -8/Materials | Discovered new exit (range 20) 1494 | -8/Materials | Garrison activated, responded to threat 2335 | -8/Materials | Entered Factory 2335 | -7/Factory | Evolved 2 slots: Utility x2 2566 | -7/Factory | Crushed by falling debris 2586 | -7/Factory | Crushed by falling debris 2610 | -7/Factory | Crushed by falling debris 2611 | -7/Factory | System corruption reached 10% 2641 | -7/Factory | Lost 5 parts (1n4u) 2647 | -7/Factory | Crushed by falling debris 2715 | -7/Factory | Garrison activated, responded to threat 2721 | -7/Factory | Released all parts (12) 2796 | -7/Factory | Core integrity fell below 50% 2901 | -7/Factory | Discovered new exit (range 3) 2918 | -7/Factory | Core integrity fell below 20% 2929 | -7/Factory | Entered Lower Caves 3020 | -7/Lower Caves | Build established: Mutant 3202 | -7/Lower Caves | Destroyed by S-27 Virus with Autogun Last Messages --------------- System corrupted: Shock Rifle misfires. A strange signal echoes through the caves. Gravmag System destroyed. S-27 Virus suffers critical hit (Impale). S-27 Virus destroyed. Acquired 28 matter. Shock Rifle destroyed. Acquired Lgt. Nuclear Core. Autogun fries itself beyond repair. Hpw. Shotgun destroyed. Gravmag System destroyed. System corrupted: Matter fused (-9). ECM Suite destroyed. S-27 Virus suffers critical hit (Impale). S-27 Virus destroyed. Lgt. Nuclear Core destroyed. Acquired 28 matter. Acquired Lgt. Nuclear Core. Acquired VTOL Module. GNTVBZFHQ5E1CKXJFZAWGLE0S,=GXED Map ----- +----------------------------------------------------+ | ?# ??# ##??????????? #?????????? | | ?# #### ##???####???# #?????????? | | ## ### ### #??? ??# #?????????? | | # ##?## ##????""" ??# #?????????? | | ### ##???### #???# """ ### #?????????? | | ## ##?????## ##???# """ #?????????? | | ## ##???#### ##???## """ ##??????### | | #????# ##???## ###?#### | | #???# ##????# ### | | ##??######?????# | | ##????????????# | | ## ##??????????# ###### | | ?## ####????? ???????# | | ??## ##????? ??????????# #### | | ???##### #?????????????????# #??# ### | | ???????## #?????????????????# ##?# #?## | | ????????## ### #????????????????## #?# ??# | | ?????????###?# ##??????????????## % #?# ##?## | | ?????????????## ####?###???##### % #?####???? | | ??????????????## ### ##??# ##????????? | | ???????????????# #??# #?????????? | | ???????????????### #?## ##????????? | | ?????????????????# ### ##???????? | | ?????????????????# ## ###?????? | | ?????????????????#### #?????? | | ???????????????????# @ ##??????? | | ??????????????????# s ### ########???????? | | ?????????????? ###?######??????????????? | | ??????????? #???????????????????????? | | ??????????? #???????????????????????? | | ?????????# #???????????????????????? | | ?????????# ## #???????????????????????? | | ?????????# #?# #???????????????????????? | | ??????????# #??# ???????????????????????? | | ??????????### ??? ???????????????????????? | | ????????????# ??? ??????????????????????? | | ????????????# ??? ??????????????????????? | | ?????????????# ??? ##?????????????????????? | | ??????????????????? ##??????????????????????? | | ????????????????????? ##???????????????????????? | | ?????????????????????? #?????????????????????????? | | ?????????????????????????????????????????????????? | | ?????????????????????????????????????????????????? | | ?????????????????????????????????????????????????? | | ?????????????????????????????????????????????????? | | ?????????????????????????????????????????????????? | | ?????????????????????????????????????????????????? | | ?????????????????????????????????????????????????? | | ?????????????????????????????????????????????????? | | ?????????????????????????????????????????????????? | +----------------------------------------------------+ Best States ------------- Heat Dissipation 41 Energy Generation 14 Energy Capacity 250 Matter Stores 300 Matter Capacity 500 Sight Range 20 Terrain Scan Range 14 Terrain Scan Density 10 ECM Strength 1 Armor Coverage 300 Resistance: EM 15 Propulsion Shielding 33 Weapon Shielding 33 Evasion (%) 55 Targeting Accuracy 8 Core Analysis 6 Recoil Reduction 4 Matter Filtering 30 Item Schematics ----------------- None Robot Schematics ------------------ None Fabricated ------------ Nothing Alien Tech Used ----------------- None Achievements -------------- Troublemaker Challenges ------------ None Game ------ Seed GrenadeReinforcedBlaster Manual? 0 Play Time 01:02:13 Cumulative 29.8 hours Start 2024.05.19 @ 12:03:36 End 2024.05.19 @ 15:07:01 Sessions 1 Manual Loads 0 Difficulty Rogue Special Mode None Game No. 29 Rogue 29 Adventurer 0 Explorer 0 Win Type - Total 0 Types 0/0/0/0/0/0/0/0/0 Lore% 17 Gallery% 19 Achievement% 18 Wizard Run 0 Options --------- Layout 0 ASCII 0 Keyboard 1 Movement Arrows Keybinds 0 Fullscreen 2 Font 20/SmallcapsGlow Map View 66x50 Zoom Use 0% Tactical HUD 0 Map Filters NONE Filters NONE Steam 1 RUN: 4a2cf0fc-475c-4e87-aab4-456db60204e9